[Event "FIDE WSTC Open 50 2025"]
[Site "Prague"]
[Date "2025.02.19"]
[Round "3.32"]
[White "Kindt, Manfred"]
[Black "Skacelik, Petr"]
[Result "0-1"]
[Annotator "TA"]
[ECO "B31"]
[WhiteElo "2049"]
[BlackElo "2132"]
[PlyCount "102"]
[EventDate "2025.02.17"]
[EventType "team-tourn"]
[EventCountry "CZE"]
[SourceTitle "playchess.com"]
[Source "ChessBase"]
[SourceQuality "1"]
[TimeControl "40/5400+30:1800+30"]

{[%evp 16,102,18,23,57,45,43,-11,-8,-52,-41,-87,-44,-122,-113,-163,-20,-33,0,-43,-39,-162,81,0,0,-89,-102,-122,-134,-200,-118,-162,-157,-185,-166,-211,-211,-270,-284,-253,-256,-194,-182,-244,-97,-87,-87,-165,-202,-322,-147,-129,-132,-217,-208,-193,-175,-425,-292,-279,-264,-266,-222,-231,-231,-348,-340,-330,-338,-365,-358,-345,-236,-286,-238,-280,-270,-500,-492,-841,0,-368,-368,-371,-377,-5515,-3486,-5747,-5522]} 1. e4 {[%emt 0:00:03]} c5 {[%emt 0:00:05]} 2. Nf3 {[%emt 0:00:11]} Nc6 {[%emt 0:00:30]} 3. Bb5 {[%emt 0:00:20]} g6 {[%emt 0:00:10]} 4. O-O {[%emt 0:00:22]} Bg7 {[%emt 0:00:09]} 5. c3 {[%emt 0:00:33]} Nf6 {[%emt 0:01:25]} 6. Re1 {[%emt 0:00:17]} O-O {[%emt 0:00:51]} 7. d4 {[%emt 0:00:26]} cxd4 {[%emt 0:04:50] 7...d5 is more advanced technology.} 8. cxd4 {[%emt 0:00:12]} d5 {[%emt 0:00:32]} 9. e5 {[%emt 0:00:18]} Nd7 {[%emt 0:00:11] B31: Sicilian: 2...Nc6 3 Bb5 g6.} 10. Bxc6 {[%emt 0:09:22]} bxc6 {[%emt 0:00:01]} 11. e6 {[%emt 0:00:29]} (11. Be3 $14) 11... fxe6 $11 {[%emt 0:03:21] The position is equal.} 12. Ng5 {[%emt 0:12:13]} Nf6 {[%emt 0:00:38][%cal Oe6e5]} 13. Nc3 $146 {[%emt 0:04:53]} (13. Be3 $15) ({Predecessor:} 13. Nxe6 Bxe6 14. Rxe6 Ne4 15. Be3 Qd7 16. Qg4 Rf5 17. Rxe4 dxe4 18. Qxe4 Rb8 19. b3 c5 20. Na3 cxd4 21. Rd1 Qb7 22. Qe6+ Rf7 23. Bf4 Qc8 24. Qd5 Qg4 {0-1 Chen,R-Ang,E (1592) Eastern Asia-ch U08 3rd 2018 (4.1)}) 13... Qd6 {[%emt 0:08:56]} 14. Na4 {[%emt 0:15:04]} (14. h3 $15) 14... h6 $1 $17 {[%emt 0:01:45]} 15. Nf3 {[%emt 0:04:04]} (15. Nh3 $17) 15... Nd7 {[%emt 0:00:12]} (15... Ng4 $1 $19 {[%cal Of8f3]} 16. h3 Rxf3 17. hxg4 Rf7) 16. Qe2 $11 {[%emt 0:10:50]} Rxf3 {[%emt 0:05:40]} 17. gxf3 {[%emt 0:06:20]} e5 {[%emt 0:00:18]} 18. dxe5 {[%emt 0:05:35]} (18. Kh1 $15) 18... Bxe5 $2 {[%emt 0:00:30]} (18... Nxe5 $2 19. Bf4 Nxf3+ 20. Qxf3 $18) (18... Qb4 $1 $19 {[%cal Rb4a4]} 19. Nc3 Nxe5 (19... Bxe5 20. Bxh6 Rb8 21. Bg5 $14) 20. Bxh6 Ba6) 19. f4 {[%emt 0:04:30]} (19. Bxh6 $16 {and Bg5 should not be overlooked} Bxh2+ 20. Kg2) 19... Bf6 {[%emt 0:01:02]} 20. Bd2 {[%emt 0:05:41]} (20. Be3 $1 $11) 20... Nb6 $17 {[%emt 0:01:25]} 21. Nxb6 {[%emt 0:04:10]} axb6 {[%emt 0:00:01]} 22. Qd3 {[%emt 0:02:20]} (22. Qf3 $17) 22... Kg7 {[%emt 0:01:56]} ({Black should play} 22... Bxb2 $19 23. Rad1 Bf5 (23... Rxa2 $2 24. Qb1 $18)) 23. Qb3 {[%emt 0:03:01]} c5 {[%emt 0:02:42][%mdl 1024] Black has strong compensation.} 24. Rad1 {[%emt 0:02:32]} Bd7 {[%emt 0:02:13]} 25. Bc1 {[%emt 0:01:41]} d4 {[%emt 0:01:20]} 26. Rd3 {[%emt 0:03:43]} b5 {[%emt 0:01:36]} 27. Rg3 {[%emt 0:00:26]} c4 {[%emt 0:00:53] Prevents Qd3} 28. Qf3 {[%emt 0:00:29]} Rg8 {[%emt 0:15:09]} 29. f5 {[%emt 0:00:55]} (29. a3) 29... g5 {[%emt 0:04:24]} (29... Bxf5 $1 $19 {[%cal Od4d3] ...d3! would now be deadly.} 30. Bf4 (30. Qxf5 $2 Qxg3+ 31. fxg3 gxf5 $19) 30... Qb4) 30. h4 {[%emt 0:01:50][%cal Rh4g5] [#]} Kf8 $1 $36 {[%emt 0:03:01][%mdl 2048] Keeping White busy.} (30... Bc6 $6 31. Qh5 Be8 32. Qf3 $11) 31. Qh5 {[%emt 0:01:49] [#]} (31. Qa8+ $17 {was the only chance.} Kf7 32. Qf3) 31... Rh8 $1 $19 {[%emt 0:00:23] Successful Defense Black} (31... Bxf5 32. hxg5 hxg5 33. Bxg5 $14) (31... Be5 32. Ra3 Bc6 (32... gxh4+ $2 33. Kf1 $18) (32... Bxf5 33. hxg5 Bg6 34. Rf3+ Ke8 35. Qg4 $18) 33. hxg5 $16 (33. Rxe5 Qxe5 34. Qxh6+ Kf7 $11)) 32. Qf3 {[%emt 0:01:00]} (32. Rh3 Be8 (32... gxh4 33. Bxh6+ Bg7 34. Ra3 $14) (32... Bxf5 $2 33. Ra3 $19) 33. Qf3) 32... Qc6 {[%emt 0:04:24]} (32... gxh4 33. Rg6 d3 34. Qh5 $18) (32... Bc6 $19 {is more deadly.} 33. Qh5 Qd5 (33... gxh4 $2 34. Bxh6+ Rxh6 35. Qxh6+ $18)) 33. Qxc6 $17 {[%emt 0:00:36]} Bxc6 {[%emt 0:00:02]} 34. hxg5 {[%emt 0:00:39]} (34. Re6 $17 Bd7 (34... gxh4 $2 35. Rg4 $19) 35. Rb6 gxh4 (35... Bxf5 36. hxg5 hxg5 37. Rxb5 $16) 36. Rg4) 34... hxg5 $19 {[%emt 0:00:09][%csl Gc6][%cal Rh8h1]} 35. f3 {[%emt 0:00:07]} d3 {[%emt 0:06:26][%cal Og5g4]} 36. a3 $2 {[%emt 0:00:35]} (36. Kg2) 36... Kf7 {[%emt 0:01:04]} ({Worse is} 36... Bd4+ 37. Kg2 $14) 37. Kg2 {[%emt 0:00:25]} Rd8 {[%emt 0:00:40]} 38. Rd1 {[%emt 0:00:23]} Bd7 {[%emt 0:00:41]} 39. Rh3 {[%emt 0:00:59]} Bxf5 {[%emt 0:00:10]} 40. Rh5 {[%emt 0:00:31]} (40. Rh6 {keeps fighting.}) 40... Kg6 {[%emt 0:00:47]} 41. Rhh1 {[%emt 0:02:14]} Bd7 {[%emt 0:08:18]} 42. Kf2 {[%emt 0:02:22]} Bc6 {[%emt 0:02:31]} 43. Rh3 {[%emt 0:01:27]} Kf5 {[%emt 0:01:04]} 44. Rh5 {[%emt 0:02:51]} Be8 {[%emt 0:02:00]} 45. Rh2 {[%emt 0:02:02]} Bd4+ {[%emt 0:01:01]} 46. Kf1 $2 {[%emt 0:04:21]} (46. Kg2) 46... Bc6 {[%emt 0:02:02]} 47. Rh5 {[%emt 0:03:48]} (47. Rh3 $142) 47... Bf6 {[%emt 0:03:03] A strong pair of Bishops.} (47... Bxf3 $142 48. Rxg5+ Kf6) 48. Kf2 {[%emt 0:00:22]} Rd6 {[%emt 0:00:45]} 49. f4 {[%emt 0:02:52]} Re6 {[%emt 0:02:22]} 50. Re1 $2 {[%emt 0:00:43]} (50. Be3) 50... Bd4+ {[%emt 0:01:32]} 51. Re3 {[%emt 0:00:46]} Kxf4 {[%emt 0:00:57] Weighted Error Value: White=0.65/Black=0.50  Missed win:     	---       	Black=2      Mistake:       	White=17    	Black=4      Inaccurate:     	White=3     	Black=4      OK:         	White=8     	Black=10     Best:        	White=3     	Black=6      Strong:       	---       	Black=3} (51... Bxe3+ 52. Bxe3 Rg6 53. fxg5 $17) 0-1

[Event "FIDE WSTC Open 50 2025"]
[Site "Prague"]
[Date "2025.02.19"]
[Round "3.34"]
[White "Rasalingam, Haran"]
[Black "Jirovsky, Milos"]
[Result "1/2-1/2"]
[Annotator "TA"]
[ECO "B01"]
[WhiteElo "2014"]
[BlackElo "2410"]
[PlyCount "107"]
[EventDate "2025.02.17"]
[EventType "team-tourn"]
[EventCountry "CZE"]
[SourceTitle "playchess.com"]
[Source "ChessBase"]
[SourceQuality "1"]
[TimeControl "40/5400+30:1800+30"]

{[%evp 9,107,57,60,33,56,-42,-52,-62,-54,-153,-77,-86,-76,-92,-96,-102,-100,-127,-110,-108,-89,-181,-173,-310,-308,-351,-195,-194,-194,-198,-189,-199,-158,-151,-144,-137,-145,-148,-144,-183,-170,-181,-156,-387,-384,-441,-427,-604,-585,-557,-571,-664,-629,-1070,-1007,-1048,-1020,-1009,-970,-1025,-436,-394,-8,-8,8,8,8,8,8,8,8,8,8,8,8,8,8,8,427,8,422,8,8,8,8,8,8,8,8,8,8,8,8,8,8,8,8,8,8,8]} 1. e4 {[%emt 0:00:25]} d5 {[%emt 0:00:10]} 2. exd5 {[%emt 0:00:23]} Qxd5 {[%emt 0:00:07]} 3. Nc3 {[%emt 0:00:25]} Qd6 {[%emt 0:00:03]} 4. d4 {[%emt 0:01:18]} c6 {[%emt 0:00:11]} 5. Nf3 {[%emt 0:00:43]} Bf5 {[%emt 0:00:28]} 6. Ne5 {[%emt 0:01:38] B01: Scandinavian Defence.} Nd7 {[%emt 0:00:34]} 7. g4 $146 {[%emt 0:11:12]} (7. Nc4 $14 Qg6 8. Ne3) ({Predecessor:} 7. Nc4 Qg6 8. Ne3 Ngf6 9. Be2 h5 10. O-O e6 11. Nxf5 Qxf5 12. Bd3 Qa5 13. Qf3 {½-½ Huang,R (2480)-Li,C (2645) CHN-chT Div-A 2024 (5.1)}) 7... Nxe5 $15 {[%emt 0:02:46]} 8. gxf5 {[%emt 0:00:07] Black is slightly better.} Qxd4 {[%emt 0:00:36]} 9. Be3 {[%emt 0:01:38] [#]} (9. Qxd4 $2 Nf3+ 10. Kd1 Nxd4 $19) ({White should play} 9. Qe2 $1 $15) 9... Qxd1+ {[%emt 0:00:35]} ({Better is} 9... Qb4 $1 10. Bd2 O-O-O (10... Qxb2 11. Rb1 $14)) 10. Rxd1 $17 {[%emt 0:00:19]} Nf6 {[%emt 0:00:45]} 11. Be2 {[%emt 0:01:39]} g6 {[%emt 0:01:57]} 12. Bd4 {[%emt 0:23:32]} Ned7 {[%emt 0:01:01] A dynamic duo of knights.} 13. fxg6 {[%emt 0:03:42]} hxg6 {[%emt 0:00:14]} 14. Ne4 {[%emt 0:05:19]} Bg7 {[%emt 0:00:30]} 15. Bf3 {[%emt 0:06:41]} (15. h4 $17 {might work better.}) 15... Rh4 $19 {[%emt 0:03:00]} 16. O-O {[%emt 0:07:28]} (16. Nc3 $142) 16... Nxe4 {[%emt 0:01:19]} 17. Bxe4 {[%emt 0:07:14]} Rxe4 {[%emt 0:05:42]} (17... e5 $142 18. Rfe1 exd4 19. Bxc6+ Kd8) 18. Bxg7 {[%emt 0:00:33]} f6 {[%emt 0:00:08]} 19. Bh6 {[%emt 0:03:06]} g5 {[%emt 0:10:05]} 20. f4 {[%emt 0:00:30]} g4 {[%emt 0:03:09]} 21. Rfe1 {[%emt 0:03:44]} Nc5 {[%emt 0:00:50]} 22. f5 {[%emt 0:03:43]} Rd8 {[%emt 0:04:46]} 23. Rxd8+ {[%emt 0:02:39]} Kxd8 {[%emt 0:00:03]} 24. Rxe4 {[%emt 0:00:17]} Nxe4 $17 {[%emt 0:00:09][%mdl 4096] Endgame KB-KN. Black is a pawn up.} 25. Bf4 {[%emt 0:00:09]} Kd7 {[%emt 0:01:24]} 26. Kf1 $2 {[%emt 0:00:29]} (26. Kg2 $17) 26... Nd6 $19 {[%emt 0:00:33]} 27. Ke2 {[%emt 0:03:32]} Nxf5 {[%emt 0:00:11]} 28. Kd3 {[%emt 0:00:08]} (28. Bb8 $142) 28... e5 {[%emt 0:00:19]} 29. Bd2 {[%emt 0:00:21]} Ke6 {[%emt 0:00:07]} 30. c4 {[%emt 0:00:45]} Nd4 {[%emt 0:00:18]} 31. b4 {[%emt 0:01:42]} Nf3 {[%emt 0:00:29][%cal Of3d2]} 32. Be3 {[%emt 0:00:34]} b6 {[%emt 0:00:12]} 33. a4 {[%emt 0:00:46]} f5 {[%emt 0:00:30]} 34. a5 {[%emt 0:00:32]} f4 {[%emt 0:00:37]} (34... Nxh2 35. Bxb6 g3 (35... axb6 36. a6 $17) 36. Bxa7 $19) (34... bxa5 $142 35. bxa5 a6 (35... Nxh2 $2 36. Bxa7 Kd7 37. Bb8 $19)) 35. Bxb6 {[%emt 0:01:04][%cal Oa5a6]} a6 $2 {[%emt 0:07:30]} (35... axb6 36. a6 $11) (35... Nxh2 $19 {...g3 is the strong threat.} 36. Bxa7 g3) 36. b5 $1 $11 {[%emt 0:03:19]} Kd7 {[%emt 0:00:45]} (36... Nxh2 $2 {is the wrong capture.} 37. bxa6 f3 38. a7 $18) (36... axb5 $2 37. a6 $18) 37. bxa6 {[%emt 0:00:34]} Kc8 $1 {[%emt 0:00:10]} 38. Ke4 {[%emt 0:00:24]} Nxh2 {[%emt 0:01:05]} 39. Kxe5 {[%emt 0:00:47]} f3 {[%emt 0:02:16]} 40. Kf4 {[%emt 0:00:13]} (40. a7 $5 Kb7 $8 41. Kf4 $11) 40... Kb8 {[%emt 0:01:04]} 41. Kg3 {[%emt 0:31:04]} Nf1+ {[%emt 0:30:20]} 42. Kxg4 {[%emt 0:03:44][%cal Oc4c5]} Nd2 {[%emt 0:00:07]} 43. Kg3 {[%emt 0:00:00]} Ka8 $2 {[%emt 0:00:00][%mdl 8192] [#]} (43... f2 $11 44. Kxf2 (44. Bxf2 Nxc4 45. Bb6 Nxa5 $11) 44... Nxc4) 44. Kf2 $2 {[%emt 0:00:00]} (44. c5 $1 $18 {aiming for Kf2.} Kb8 45. Kf2) 44... Kb8 $2 {[%emt 0:00:00][%mdl 8192]} (44... Nxc4 $11 45. Kxf3 Nxa5) 45. Ke3 $2 {[%emt 0:00:00]} (45. c5 $18) 45... Nxc4+ {[%emt 0:00:00] The position is equal.} 46. Kxf3 {[%emt 0:00:00]} Nxa5 {[%emt 0:00:00]} 47. Bxa5 {[%emt 0:00:00] KB-KP} Ka7 {[%emt 0:00:00] Prevents Bb6+.} 48. Ke4 $1 {[%emt 0:00:00]} Kxa6 {[%emt 0:00:00]} 49. Bc3 {[%emt 0:00:00]} c5 {[%emt 0:00:00]} 50. Kd5 {[%emt 0:00:00]} Kb5 {[%emt 0:00:00]} 51. Bd2 {[%emt 0:00:00]} c4 {[%emt 0:00:00]} 52. Kd4 {[%emt 0:00:00]} c3 {[%emt 0:00:00]} 53. Bxc3 {[%emt 0:00:00]} Kc6 {[%emt 0:00:00]} 54. Ke4 {Quite a comeback for White.   Weighted Error Value: White=0.61/Black=0.16 (very precise)   Loses game:     	White=1     	Black=2      Missed win:     	White=2     	---        Mistake:       	White=5     	Black=2      Inaccurate:     	White=1     	---        OK:         	White=19    	Black=16     Best:        	White=4     	Black=3      Strong:       	White=2     	Black=1} 1/2-1/2

[Event "FIDE WSTC Open 50 2025"]
[Site "Prague"]
[Date "2025.02.19"]
[Round "3.35"]
[White "Zvara, Petr"]
[Black "Martin, Benjamin M S"]
[Result "0-1"]
[Annotator "TA"]
[ECO "C78"]
[WhiteElo "2330"]
[BlackElo "2375"]
[PlyCount "91"]
[EventDate "2025.02.17"]
[EventType "team-tourn"]
[EventCountry "CZE"]
[SourceTitle "playchess.com"]
[Source "ChessBase"]
[SourceQuality "1"]
[TimeControl "40/5400+30:1800+30"]

{[%evp 13,90,27,27,27,33,22,35,17,28,35,28,23,22,27,63,7,37,0,14,6,40,-19,-35,-28,-14,-43,0,0,48,-72,-45,-150,-67,-58,-62,-62,-63,-54,-60,-97,-114,-102,-87,-133,-126,-155,-139,-177,-179,-225,-127,-144,-140,-212,-217,-225,-220,-254,-243,-229,-241,-308,-222,-320,-214,-362,-218,-354,-280,-358,-361,-356,-360,-356,-251,-546,-540,-573,-563]} 1. e4 {[%emt 0:00:03]} e5 {[%emt 0:00:16]} 2. Nf3 {[%emt 0:00:07]} Nc6 {[%emt 0:00:05]} 3. Bb5 {[%emt 0:00:05]} a6 {[%emt 0:00:26]} 4. Ba4 {[%emt 0:00:07]} Nf6 {[%emt 0:00:10]} 5. O-O {[%emt 0:00:08]} Bc5 {[%emt 0:00:31]} 6. c3 {[%emt 0:01:29]} O-O {[%emt 0:00:27]} 7. d4 {[%emt 0:01:41][%cal Bd2d4,Bd4d5][%mdl 32]} Ba7 {[%emt 0:00:11]} 8. Re1 {[%emt 0:11:02] C78: Ruy Lopez: Archangelsk and Möller Defences.} d6 $1 {[%emt 0:01:41] 8...d6 is better than 8...b5.} 9. h3 {[%emt 0:01:38]} b5 {[%emt 0:14:38]} 10. Bb3 {[%emt 0:01:43] White is slightly better.} Bb7 {[%emt 0:09:12] has lost popularity (10...h6).} 11. Bg5 {[%emt 0:07:15]} Re8 {[%emt 0:03:51]} 12. d5 $1 {[%emt 0:01:15]} Na5 {[%emt 0:04:27]} 13. Bc2 {[%emt 0:00:07]} h6 {[%emt 0:03:17]} 14. Bh4 {[%emt 0:01:10]} ({Better is} 14. Bxf6 $1 $14 Qxf6 15. a4) 14... Nc4 $146 {[%emt 0:04:11]} ({Predecessor:} 14... c6 15. Nbd2 cxd5 16. exd5 Qb6 17. Bxf6 Qxf2+ 18. Kh2 gxf6 19. Ne4 Qb6 20. Nxf6+ Kf8 21. Nd7+ {1-0 Schmid,S (2253)-Schmitt,H Miercurea Ciuc-C 7th 2004 (6)}) 15. b3 {[%emt 0:02:26]} Nb6 {[%emt 0:00:06]} 16. Nbd2 {[%emt 0:00:11][%cal Bb1d2,Bd2f1,Bf1g3,Bg3f5][%mdl 32]} g5 {[%emt 0:08:49] [#]} 17. Nxg5 {[%emt 0:02:47]} hxg5 $11 {[%emt 0:00:07]} 18. Bxg5 {[%emt 0:00:04]} Nbd7 {[%emt 0:01:33]} 19. Qf3 {[%emt 0:00:37]} Kg7 {[%emt 0:00:56]} 20. Nf1 {[%emt 0:00:33]} Rh8 {[%emt 0:07:54]} (20... Rg8 $11 {feels stronger.}) 21. Rad1 {[%emt 0:08:42]} (21. a4 $14 {keeps the upper hand.}) 21... Qg8 $17 {[%emt 0:03:49][%cal Og7f8]} 22. Rd3 {[%emt 0:03:43]} (22. h4 $15) 22... Qh7 {[%emt 0:11:42]} (22... Kf8 $1 $17 23. Qf5 (23. Bxf6 Rh6 $17) 23... Qg6 24. Qxg6 fxg6) 23. Ng3 $15 {[%emt 0:20:19][%cal Og5h6]} Qg6 {[%emt 0:00:55]} 24. Nf5+ {[%emt 0:02:04]} Kf8 {[%emt 0:03:14]} 25. h4 {[%emt 0:07:40]} Qh5 {[%emt 0:05:26]} 26. Qxh5 {[%emt 0:00:06]} Nxh5 {[%emt 0:01:47]} 27. Bd1 {[%emt 0:02:35]} Nf4 {[%emt 0:04:11]} 28. Rf3 {[%emt 0:00:14] [#]} (28. Rg3 $142) 28... f6 $1 $17 {[%emt 0:00:44]} 29. Bh6+ {[%emt 0:06:13]} Kf7 {[%emt 0:00:09]} 30. g3 {[%emt 0:00:14] [#]} Ng6 {[%emt 0:00:29]} 31. Rd3 {[%emt 0:01:07]} (31. Bd2 $142) 31... Ndf8 {[%emt 0:02:29]} (31... Nc5 $19 32. Rf3 Rag8) 32. Bd2 {[%emt 0:07:05]} Bc8 {[%emt 0:01:20]} 33. c4 {[%emt 0:04:48]} (33. Rf3 $17) 33... Bxf5 $19 {[%emt 0:01:33]} 34. exf5 {[%emt 0:00:03]} Ne7 {[%emt 0:00:08]} 35. Bg4 {[%emt 0:00:09]} bxc4 {[%emt 0:01:25]} 36. bxc4 {[%emt 0:00:03]} Nd7 {[%emt 0:00:10]} 37. Kg2 {[%emt 0:01:21]} Rab8 {[%emt 0:01:13]} 38. h5 {[%emt 0:01:40]} (38. Rb3 {was forced.}) 38... Bc5 {[%emt 0:01:35]} 39. h6 {[%emt 0:00:13]} (39. Rb3 {was worth a try.}) 39... Kg8 {[%emt 0:01:31]} 40. Bh5 {[%emt 0:01:47]} (40. Rb3 $142) 40... Kh7 {[%emt 0:01:12][%cal Ob8b2]} (40... Nxf5 41. Bg4 Nxh6 42. Bxd7 $11) 41. Bf7 {[%emt 0:30:20]} Bb4 {[%emt 0:32:24] And now ...Nc5 would win.} (41... Nxf5 42. Be6 Nxh6 43. Bxd7 $15) 42. Re4 {[%emt 0:00:00]} Bxd2 {[%emt 0:00:00]} (42... Nxf5 43. Be6 Nxh6 44. Bxh6 $11 (44. Bxd7 Bxd2 45. Rxd2 Kg6 $11)) 43. Rxd2 {[%emt 0:00:00]} Rhf8 {[%emt 0:00:00]} ({Weaker is} 43... Nxf5 44. Be6 Nd4 45. Bxd7 $11) 44. Bh5 {[%emt 0:00:00]} (44. Be6 Nc5 45. Rg4 Nxe6 (45... Kxh6 46. Rd1 Kh5 47. Rh4+ Kg5 48. Rdh1 Nxf5 49. f4+ exf4 50. gxf4+ Kg6 51. Rg4#) 46. fxe6) 44... Nc5 {[%emt 0:00:00]} 45. Rh4 {[%emt 0:00:00]} Nxf5 {[%emt 0:00:00]} ({Stronger than} 45... Kxh6 46. Be8+ Kg7 47. Rg4+ Kh7 48. Rd1) 46. Rh1 {[%emt 0:00:00] Weighted Error Value: White=0.46/Black=0.29 (precise)   Mistake:       	White=11    	Black=3      Inaccurate:     	White=2     	Black=6      OK:         	White=6     	Black=15     Best:        	White=1     	Black=3      Strong:       	White=1     	---} 0-1

[Event "FIDE WSTC Open 50 2025"]
[Site "Prague"]
[Date "2025.02.19"]
[Round "3.36"]
[White "Proudfoot, Andy"]
[Black "Konopka, Michal"]
[Result "0-1"]
[Annotator "TA"]
[ECO "B04"]
[WhiteElo "1597"]
[BlackElo "2326"]
[PlyCount "24"]
[EventDate "2025.02.17"]
[EventType "team-tourn"]
[EventCountry "CZE"]
[SourceTitle "playchess.com"]
[Source "ChessBase"]
[SourceQuality "1"]
[TimeControl "40/5400+30:1800+30"]

{[%evp 12,24,44,41,53,-70,-72,-196,-190,-180,-182,-487,-482,-485,-489]} 1. e4 {[%emt 0:00:25][%cal Be2e4,Be4e5][%mdl 32]} Nf6 {[%emt 0:00:27]} 2. e5 {[%emt 0:00:31]} Nd5 {[%emt 0:00:37]} 3. d4 {[%emt 0:00:37]} d6 {[%emt 0:00:06]} 4. Nf3 {[%emt 0:00:54]} g6 {[%emt 0:00:33]} 5. Bc4 {[%emt 0:04:23]} c6 {[%emt 0:00:45]} 6. Bb3 {[%emt 0:05:24]} Bg7 {[%emt 0:00:41]} 7. O-O {[%emt 0:05:40]} dxe5 {[%emt 0:01:19] B04: Alekhine's Defence: 4 Nf3.} 8. c4 $146 {[%emt 0:09:20]} (8. Nxe5 $14 O-O 9. c4) (8. Nxe5 O-O 9. c4 Nc7 10. Re1 Bf5 11. Nc3 Nd7 12. Nf3 Bg4 13. Be3 Ne6 14. d5 Nec5 15. Bc2 cxd5 16. cxd5 {0-1 Przybylski,W (2320)-Sergeev,V (2449) Perla Baltyku op-A 3rd 2007 (6)}) 8... Nf4 $1 $15 {[%emt 0:21:09][%cal Bd5f4,Bf4e2,Be2c1][%mdl 32]} 9. Nxe5 {[%emt 0:19:54] [#]} (9. Be3 $17) 9... Qxd4 $1 $19 {[%emt 0:02:31][%mdl 512]} 10. Nf3 {[%emt 0:07:40]} Qxd1 {[%emt 0:01:33]} 11. Rxd1 $2 {[%emt 0:02:15]} (11. Bxd1 {nothing else works.} Nd3 12. Nc3) 11... Ne2+ {[%emt 0:00:15]} 12. Kf1 {[%emt 0:01:52]} Nxc1 {[%emt 0:00:08] Black took control after the opening.   Weighted Error Value: White=1.01/Black=0.03 (flawless)   Mistake:       	White=3     	---        OK:         	White=2     	Black=1      Best:        	---       	Black=2      Strong:       	---       	Black=1      Brilliant:      	---       	Black=1} 0-1

[Event "FIDE WSTC Open 50 2025"]
[Site "Prague"]
[Date "2025.02.19"]
[Round "3.37"]
[White "Seul, Georg"]
[Black "Lauterbach, Ingrid"]
[Result "1/2-1/2"]
[Annotator "TA"]
[ECO "B31"]
[WhiteElo "2329"]
[BlackElo "2003"]
[PlyCount "49"]
[EventDate "2025.02.17"]
[EventType "team-tourn"]
[EventCountry "CZE"]
[SourceTitle "playchess.com"]
[Source "ChessBase"]
[SourceQuality "1"]
[TimeControl "40/5400+30:1800+30"]

{[%evp 9,49,26,43,33,69,7,29,33,46,39,60,39,53,51,52,37,41,19,26,16,14,36,80,69,97,44,42,-85,-68,-160,-162,-166,-164,-159,-157,-166,-32,-112,-103,-116,-16,-40]} 1. e4 {[%emt 0:00:03]} c5 {[%emt 0:00:15]} 2. Nf3 {[%emt 0:00:06]} Nc6 {[%emt 0:00:10]} 3. Bb5 {[%emt 0:00:11]} g6 {[%emt 0:00:15]} 4. O-O {[%emt 0:00:47]} Bg7 {[%emt 0:00:13]} 5. Re1 {[%emt 0:00:26]} Nh6 {[%emt 0:01:25]} 6. h3 {[%emt 0:03:58] B31: Sicilian: 2...Nc6 3 Bb5 g6.} e5 $146 {[%emt 0:07:17]} (6... f6 7. c3 Nf7 8. d4 cxd4 9. cxd4 O-O 10. Nc3 a6 11. Bf1 d6 12. Be3 Qa5 13. d5 Nce5 {0-1 Klein,D (2508)-Reimanis,R (2302) Titled Tuesday intern op 2nd May blitz 2017 (7)}) 7. Bxc6 {[%emt 0:14:23]} (7. d3 $14) 7... bxc6 {[%emt 0:00:25]} 8. c3 {[%emt 0:00:58][%cal Bc2c3,Bc3d4][%mdl 32] White has an edge.} f6 {[%emt 0:00:38]} 9. d4 {[%emt 0:01:42]} cxd4 {[%emt 0:00:58]} 10. cxd4 {[%emt 0:00:06]} Nf7 {[%emt 0:00:58]} 11. Nc3 {[%emt 0:13:19]} O-O {[%emt 0:06:34]} 12. b3 {[%emt 0:01:52]} Re8 {[%emt 0:18:04]} 13. Bb2 {[%emt 0:00:40]} d6 {[%emt 0:03:06]} 14. Qc2 {[%emt 0:02:48]} exd4 {[%emt 0:07:22]} 15. Nxd4 {[%emt 0:00:11]} c5 {[%emt 0:00:11]} 16. Nde2 {[%emt 0:01:52] White is more active.} f5 {[%emt 0:00:49]} 17. Nf4 {[%emt 0:01:03]} (17. Nd5 $16) 17... Ne5 {[%emt 0:12:02]} 18. Rad1 {[%emt 0:04:36]} (18. Qd2 $14 {stays ahead.} Bb7 19. Nfd5) 18... Qg5 $17 {[%emt 0:03:04] [#]} 19. Nfd5 {[%emt 0:13:57]} ({White should play} 19. Ncd5 $15) 19... Nf3+ {[%emt 0:00:40]} 20. Kh1 {[%emt 0:00:05]} Nxe1 {[%emt 0:00:16]} 21. Rxe1 {[%emt 0:00:04]} Bb7 {[%emt 0:06:37]} 22. Nc7 {[%emt 0:20:32] [#]} Be5 {[%emt 0:07:56]} 23. Nxe8 {[%emt 0:02:49]} (23. Bc1 $15 Qh4 24. N3d5) 23... Rxe8 {[%emt 0:00:18]} 24. Bc1 {[%emt 0:10:58] Prevents Qf4} Qh5 {[%emt 0:04:04]} ({Better is} 24... Qh4 $17 {...f4 is the strong threat.} 25. Kg1 Bd4) 25. Kg1 {[%emt 0:01:29] Weighted Error Value: White=0.37/Black=0.30  Mistake:       	White=5     	Black=2      Inaccurate:     	---       	Black=3      OK:         	White=5     	Black=3      Best:        	White=1     	Black=2} 1/2-1/2